fUST/lending_fUST_20250320
["ID","MTS","AMOUNT","RATE_DAILY","PERIOD"]
[356449401,1742461892511,-500.0,0.00034246,21]
[356449402,1742461892521,-500.0,0.00034246,21]
[356449403,1742461892530,-500.0,0.00034246,21]
[356449404,1742461892540,-500.0,0.00034246,21]
[356449405,1742461892549,-753.03,0.00034246,21]
[356449406,1742461892559,-500.0,0.00034246,21]
[356449407,1742461892568,-875.53,0.00034246,21]
[356449408,1742461892578,-500.0,0.00034246,21]
[356449409,1742461892587,-1180.94,0.00034246,21]
[356449410,1742461892597,-500.0,0.00034246,21]
[356449411,1742461892606,-1130.54,0.00034246,21]
[356449412,1742461892616,-911.08,0.00034246,21]
[356449413,1742461892625,-558.15,0.00034246,21]
[356449414,1742461892634,-500.0,0.00034246,21]
[356449415,1742461892643,-500.0,0.00034246,21]
[356449416,1742461892652,-500.0,0.00034246,2]
[356449417,1742461892661,-500.0,0.00034246,21]
[356449418,1742461892671,-505.21144896,0.00034246,21]
[356449419,1742461892681,-732.77,0.00034246,21]
[356449420,1742461892690,-500.0,0.00034246,21]
[356449421,1742461892700,-641.16,0.00034246,21]
[356449422,1742461892709,-500.0,0.00034246,21]
[356449423,1742461892722,-2588.15,0.00034246,21]
[356449424,1742461892734,-305.25,0.00034246,7]
[356449425,1742461892744,-2770.24,0.00034246,21]
[356449426,1742461892753,-655.48,0.00034246,21]
[356449427,1742461892763,-500.0,0.00034246,21]
[356449428,1742461892773,-1807.0,0.00034246,21]
[356449429,1742461892782,-500.0,0.00034246,21]
[356449430,1742461892792,-500.0,0.00034246,21]
[356449431,1742461892802,-1865.76,0.00034246,21]
[356449432,1742461892812,-1696.68,0.00034246,21]
[356449433,1742461892822,-500.0,0.00034246,21]
[356449434,1742461892831,-658.72,0.00034246,21]
[356449435,1742461892841,-500.0,0.00034246,21]
[356449436,1742461892851,-500.0,0.00034246,21]
[356449437,1742461892861,-265.94929715,0.00034246,21]
[356449438,1742461892871,-975.97,0.00034246,21]
[356449439,1742461892881,-500.0,0.00034246,21]
[356449440,1742461892891,-500.0,0.00034246,21]
[356449441,1742461892901,-733.17,0.00034246,21]
[356449442,1742461892911,-500.0,0.00034246,21]
[356449443,1742461892921,-824.24,0.00034246,21]
[356449444,1742461892930,-903.13,0.00034246,21]
[356449445,1742461892940,-500.0,0.00034246,21]
[356449446,1742461892950,-2048.73,0.00034246,21]
[356449447,1742461892960,-2000.0,0.00034246,2]
[356449448,1742461892971,-621.17,0.00034246,21]
[356449449,1742461892980,-1685.17,0.00034246,21]
[356449450,1742461892990,-1596.9,0.00034246,21]
[356449451,1742461893000,-500.0,0.00034246,21]
[356449452,1742461893010,-500.0,0.00034246,21]
[356449453,1742461893024,-500.0,0.00034246,21]
[356449454,1742461893035,-898.4,0.00034246,21]
[356449455,1742461893045,-500.0,0.00034246,21]
[356449456,1742461893055,-1000.0,0.00034246,21]
[356449457,1742461893065,-672.21,0.00034246,21]
[356449458,1742461893075,-1130.2,0.00034246,21]
[356449459,1742461893086,-687.1,0.00034246,21]
[356449460,1742461893097,-500.0,0.00034246,21]
[356449461,1742461893107,-1232.97,0.00034246,21]
[356449462,1742461893117,-500.0,0.00034246,21]
[356449463,1742461893127,-500.0,0.00034246,21]
[356449464,1742461893137,-500.0,0.00034246,21]
[356449465,1742461893148,-1859.15,0.00034246,21]
[356449466,1742461893158,-500.0,0.00034246,21]
[356449467,1742461893168,-500.0,0.00034246,21]
[356449468,1742461893178,-1253.26,0.00034246,21]
[356449469,1742461893188,-500.0,0.00034246,21]
[356449470,1742461893198,-687.5,0.00034246,21]
[356449471,1742461893208,-500.0,0.00034246,21]
[356449472,1742461893219,-500.0,0.00034246,21]
[356449473,1742461893228,-500.0,0.00034246,21]
[356449474,1742461893238,-1207.88,0.00034246,21]
[356449475,1742461893248,-1961.79,0.00034246,21]
[356449476,1742461893258,-781.15,0.00034246,21]
[356449477,1742461893268,-500.0,0.00034246,21]
[356449478,1742461893278,-500.0,0.00034246,21]
[356449479,1742461893289,-500.0,0.00034246,21]
[356449480,1742461893298,-500.0,0.00034246,21]
[356449481,1742461893308,-1061.76,0.00034246,21]
[356449482,1742461893318,-1171.37,0.00034246,21]
[356449483,1742461893328,-500.0,0.00034246,21]
[356449484,1742461893338,-500.0,0.00034246,21]
[356449485,1742461893348,-500.0,0.00034246,21]
[356449486,1742461893358,-736.59,0.00034246,21]
[356449487,1742461893368,-500.0,0.00034246,21]
[356449488,1742461893378,-500.0,0.00034246,21]
[356449489,1742461893388,-500.0,0.00034246,21]
[356449490,1742461893398,-500.0,0.00034246,21]
[356449491,1742461893407,-500.0,0.00034246,21]
[356449492,1742461893417,-500.0,0.00034246,21]
[356449493,1742461893427,-660.49,0.00034246,21]
[356449494,1742461893437,-1358.55,0.00034246,21]
[356449495,1742461893447,-609.52,0.00034246,21]
[356449496,1742461893457,-500.0,0.00034246,21]
[356449497,1742461893470,-1210.31,0.00034246,21]
[356449498,1742461893480,-1714.71,0.00034246,21]
[356449499,1742461893490,-2065.34,0.00034246,21]
[356449500,1742461893499,-500.0,0.00034246,21]
[356449501,1742461893510,-500.0,0.00034246,21]
[356449502,1742461893519,-500.0,0.00034246,21]
[356449503,1742461893529,-3075.26,0.00034246,2]
[356449504,1742461893539,-675.19,0.00034246,21]
[356449505,1742461893549,-737.09,0.00034246,120]
[356449506,1742461893558,-1851.11,0.00034246,21]
[356449507,1742461893568,-500.0,0.00034246,21]
[356449508,1742461893579,-2009.68,0.00034246,21]
[356449509,1742461893589,-500.0,0.00034246,21]
[356449510,1742461893599,-942.57,0.00034246,21]
[356449511,1742461893608,-500.0,0.00034246,21]
[356449512,1742461893618,-500.0,0.00034246,21]
[356449513,1742461893628,-964.88,0.00034246,21]
[356449514,1742461893637,-500.0,0.00034246,21]
[356449515,1742461893648,-2419.44,0.00034246,21]
[356449516,1742461893657,-2542.88,0.00034246,21]
[356449517,1742461893667,-685.1,0.00034246,21]
[356449518,1742461893677,-1476.12,0.00034246,21]
[356449519,1742461893687,-500.0,0.00034246,21]
[356449520,1742461893696,-500.0,0.00034246,21]
[356449521,1742461893706,-500.0,0.00034246,21]
[356449522,1742461893717,-4351.88,0.00034246,21]
[356449523,1742461893727,-500.0,0.00034246,21]
[356449524,1742461893741,-500.0,0.00034246,21]
[356449525,1742461893751,-500.0,0.00034246,21]
[356449526,1742461893760,-650.64,0.00034246,21]
[356449527,1742461893771,-2530.87,0.00034246,21]
[356449528,1742461893780,-500.0,0.00034246,21]
[356449529,1742461893790,-500.0,0.00034246,21]
[356449530,1742461893800,-500.0,0.00034246,21]
[356449531,1742461893810,-578.49,0.00034246,21]
[356449532,1742461893820,-2689.17,0.00034246,21]
[356449533,1742461893830,-500.0,0.00034246,21]
[356449534,1742461893840,-589.72,0.00034246,21]
[356449535,1742461893850,-500.0,0.00034246,21]
[356449536,1742461893860,-500.0,0.00034246,21]
[356449537,1742461893869,-1965.62,0.00034246,21]
[356449538,1742461893879,-996.84,0.00034246,21]
[356449539,1742461893888,-1943.3,0.00034246,21]
[356449540,1742461893898,-1404.37,0.00034246,21]
[356449541,1742461893908,-500.0,0.00034246,21]
[356449542,1742461893918,-1002.8,0.00034246,21]
[356449543,1742461893928,-1103.23,0.00034246,21]
[356449544,1742461893938,-4224.96,0.00034246,21]
[356449545,1742461893948,-500.0,0.00034246,21]
[356449546,1742461893957,-772.48,0.00034246,21]
[356449547,1742461893969,-500.0,0.00034246,21]
[356449548,1742461893979,-500.0,0.00034246,21]
[356449549,1742461893989,-1769.17,0.00034246,21]
[356449550,1742461893999,-4213.65,0.00034246,21]
[356449551,1742461894009,-2216.52,0.00034246,21]
[356449552,1742461894019,-558.58,0.00034246,21]
[356449553,1742461894029,-500.0,0.00034246,21]
[356449554,1742461894038,-500.0,0.00034246,7]
[356449555,1742461894048,-537.54,0.00034246,21]
[356449556,1742461894058,-500.0,0.00034246,21]
[356449557,1742461894067,-500.0,0.00034246,21]
[356449558,1742461894079,-1007.97,0.00034246,21]
[356449559,1742461894090,-5141.99,0.00034246,21]
[356449560,1742461894100,-500.0,0.00034246,21]
[356449561,1742461894110,-500.0,0.00034246,21]
[356449562,1742461894121,-632.59,0.00034246,21]
[356449563,1742461894131,-500.0,0.00034246,21]
[356449564,1742461894141,-955.84,0.00034246,21]
[356449565,1742461894152,-500.0,0.00034246,7]
[356449566,1742461894162,-605.08,0.00034246,21]
[356449567,1742461894172,-500.0,0.00034246,21]
[356449568,1742461894182,-645.24,0.00034246,21]
[356449569,1742461894193,-522.73866176,0.00034246,21]
[356449570,1742461894203,-793.78,0.00034246,21]
[356449571,1742461894212,-1148.83,0.00034246,21]
[356449572,1742461894222,-500.0,0.00034246,21]
[356449573,1742461894232,-829.94,0.00034246,21]
[356449574,1742461894241,-500.0,0.00034246,21]
[356449575,1742461894251,-500.0,0.00034246,21]
[356449576,1742461894261,-500.0,0.00034246,21]
[356449577,1742461894271,-500.0,0.00034246,21]
[356449578,1742461894281,-500.0,0.00034246,21]
[356449579,1742461894291,-591.03414196,0.00034246,21]
[356449580,1742461894301,-500.0,0.00034246,21]
[356449581,1742461894311,-597.9,0.00034246,21]
[356449582,1742461894321,-2456.66,0.00034246,21]
[356449583,1742461894331,-500.0,0.00034246,21]
[356449584,1742461894341,-1085.47,0.00034246,21]
[356449585,1742461894351,-500.0,0.00034246,21]
[356449586,1742461894360,-1445.83,0.00034246,21]
[356449587,1742461894370,-649.77,0.00034246,21]
[356449588,1742461894379,-1355.11,0.00034246,21]
[356449589,1742461894389,-1787.39,0.00034246,21]
[356449590,1742461894399,-500.0,0.00034246,21]
[356449591,1742461894409,-2452.84,0.00034246,21]
[356449592,1742461894419,-1890.01,0.00034246,21]
[356449593,1742461894430,-1817.26,0.00034246,21]
[356449594,1742461894440,-1765.11,0.00034246,21]
[356449595,1742461894449,-500.0,0.00034246,21]
[356449596,1742461894460,-2034.71,0.00034246,21]
[356449597,1742461894470,-500.0,0.00034246,21]
[356449598,1742461894480,-500.0,0.00034246,21]
[356449599,1742461894492,-633.39,0.00034246,21]
[356449600,1742461894502,-500.0,0.00034246,21]
[356449601,1742461894512,-619.13,0.00034246,21]
[356449602,1742461894521,-500.0,0.00034246,21]
[356449603,1742461894531,-4514.15,0.00034246,21]
[356449604,1742461894540,-500.0,0.00034246,21]
[356449605,1742461894551,-1875.2,0.00034246,21]
[356449606,1742461894560,-500.0,0.00034246,21]
[356449607,1742461894570,-2511.45,0.00034246,21]
[356449608,1742461894579,-2083.42,0.00034246,21]
[356449609,1742461894589,-500.0,0.00034246,21]
[356449610,1742461894600,-802.76,0.00034246,21]
[356449611,1742461894610,-500.0,0.00034246,21]
[356449612,1742461894619,-894.41,0.00034246,21]
[356449613,1742461894630,-43428.33,0.00034246,21]
[356449614,1742461894640,-789.64,0.00034246,21]
[356449615,1742461894650,-500.0,0.00034246,21]
[356449616,1742461894848,-1166.99,0.00034246,21]
[356449617,1742461894859,-2100.8,0.00034246,21]
[356449618,1742461894869,-500.0,0.00034246,21]
[356449619,1742461894878,-401.22147802,0.00034246,21]
[356449620,1742461894888,-5569.78,0.00034246,21]
[356449621,1742461894897,-500.0,0.00034246,21]
[356449622,1742461894907,-500.0,0.00034246,21]
[356449623,1742461894918,-500.0,0.00034246,21]
[356449624,1742461894929,-982.83,0.00034246,21]
[356449625,1742461894938,-500.0,0.00034246,21]
[356449626,1742461894948,-1203.67,0.00034246,21]
[356449627,1742461894959,-512.04,0.00034246,21]
[356449628,1742461894969,-500.0,0.00034246,21]
[356449629,1742461894978,-500.0,0.00034246,21]
[356449630,1742461894988,-500.0,0.00034246,21]
[356449631,1742461894998,-1674.92,0.00034246,21]
[356449632,1742461895007,-1096.74,0.00034246,21]
[356449633,1742461895018,-500.0,0.00034246,21]
[356449634,1742461895028,-500.0,0.00034246,21]
[356449635,1742461895039,-916.01,0.00034246,21]
[356449636,1742461895048,-500.0,0.00034246,21]
[356449637,1742461895057,-386.46468051,0.00034246,21]
[356449638,1742461895067,-500.0,0.00034246,21]
[356449639,1742461895076,-500.0,0.00034246,21]
[356449640,1742461895086,-5370.83,0.00034246,120]
[356449641,1742461895096,-500.0,0.00034246,21]
[356449642,1742461895105,-500.0,0.00034246,21]
[356449643,1742461895115,-509.9,0.00034246,21]
[356449644,1742461895124,-628.04,0.00034246,21]
[356449645,1742461895133,-29745.15,0.00034246,21]
[356449646,1742461895142,-858.18,0.00034246,21]
[356449647,1742461895152,-500.0,0.00034246,21]
[356449648,1742461895161,-500.0,0.00034246,21]
[356449649,1742461895170,-500.0,0.00034246,21]
[356449650,1742461895179,-895.78,0.00034246,21]
[356449651,1742461895189,-500.0,0.00034246,21]
[356449652,1742461895199,-20512.22,0.00034246,21]
[356449653,1742461895207,-713.19,0.00034246,21]
[356449654,1742461895217,-525.76999581,0.00034246,21]
[356449655,1742461895226,-568.8,0.00034246,21]
[356449656,1742461895235,-500.0,0.00034246,21]
[356449657,1742461895244,-1685.96,0.00034246,21]
[356449658,1742461895253,-1429.05,0.00034246,21]
[356449659,1742461895262,-500.0,0.00034246,21]
[356449660,1742461895271,-500.0,0.00034246,5]
[356449661,1742461895280,-14238.95,0.00034246,21]
[356449662,1742461895289,-1361.5,0.00034246,21]
[356449663,1742461895299,-616.78,0.00034246,21]
[356449664,1742461895307,-500.0,0.00034246,21]
[356449665,1742461895317,-1513.81,0.00034246,21]
[356449666,1742461895327,-624.23259698,0.00034246,21]
[356449667,1742461895338,-813.05,0.00034246,21]
[356449668,1742461895347,-556.92726475,0.00034246,21]
[356449669,1742461895356,-500.0,0.00034246,21]
[356449670,1742461895365,-1329.65,0.00034246,21]
[356449671,1742461895374,-4411.74,0.00034246,21]
[356449672,1742461895383,-7017.77854386,0.00034246,21]
[356449673,1742461896567,-206.01159091,0.00032876,21]
[356449674,1742461899446,-206.01159091,0.00032876,21]
[356449676,1742461983427,-222.50413999,0.00024953,120]
[356449677,1742462011975,-255.99154232,0.00024953,120]
[356449678,1742462014943,-79.28544092,0.00024953,120]
[356449679,1742462014968,-431.82289705,0.00032876,21]
[356449680,1742462022719,-300.0,0.00031774,5]
[356449706,1742462136959,-193.05046641,0.00024953,120]
[356449707,1742462210748,-224.53933521,0.00024953,2]
[356449708,1742462395836,-150.0,0.00024953,2]
[356449709,1742462502970,-188.5442356,0.00025,15]
[356449710,1742462581021,-165.53246295,0.00024703,2]
[356449718,1742462764279,-150.0,0.000269,4]
[356449740,1742462899758,-151.43978675,0.000125,2]
[356449741,1742462903667,419.17247448,0.0001,2]
[356449750,1742462921006,-177.298009,0.000125,2]
[356449760,1742462957150,-3121.16142639,0.00012374,2]
[356449761,1742462957171,-300.0,0.00012499,2]
[356449762,1742462957192,-7632.08254123,0.000125,2]
[356449763,1742462959541,-400.0,0.000125,2]
[356449776,1742463002275,-150.0,0.00012375,2]
[356449777,1742463005915,-177.10636203,0.00012375,2]
[356449800,1742463032003,-72.89363797,0.00012375,2]
[356449801,1742463032014,-2830.73441809,0.000125,2]
[356449802,1742463032023,-300.0,0.00014999,2]
[356449803,1742463032033,-41476.80104738,0.00015,2]
[356449815,1742463032840,-269.3797874,0.00015,2]
[356449816,1742463035682,-187.25236954,0.00014999,2]
[356449841,1742463037988,-301.39564878,0.00014999,2]
[356449842,1742463037998,-511.15435122,0.00015,2]
[356449843,1742463038009,-742.664814,0.00015,2]
[356449844,1742463038019,-142.06497364,0.00016416,2]
[356449904,1742463042758,-177.10636203,0.00014849,2]
[356449905,1742463042767,-277.93502636,0.00016416,2]
[356449906,1742463042782,-587.0,0.00017966,2]
[356449907,1742463042792,-823.0,0.00019663,2]
[356449908,1742463042801,-1152.0,0.0002152,2]
[356449909,1742463042811,-500.0,0.00021918,2]
[356449910,1742463042821,-500.0,0.00021918,2]
[356449911,1742463042831,-500.0,0.00021918,2]
[356449912,1742463042841,-500.0,0.00021918,2]
[356449913,1742463042851,-500.0,0.00021918,2]
[356449914,1742463042860,-500.0,0.00021918,2]
[356449915,1742463042869,-500.0,0.00021918,2]
[356449916,1742463042879,-500.0,0.00021918,2]
[356449917,1742463042888,-500.0,0.00021918,2]
[356449918,1742463042898,-500.0,0.00021918,2]
[356449919,1742463042908,-500.0,0.00021918,2]
[356449920,1742463042918,-500.0,0.00021918,2]
[356449921,1742463042927,-500.0,0.00021918,2]
[356449922,1742463042937,-500.0,0.00021918,2]
[356449923,1742463042947,-500.0,0.00021918,2]
[356449924,1742463042957,-500.0,0.00021918,2]
[356449925,1742463042967,-500.0,0.00021918,2]
[356449926,1742463042976,-500.0,0.00021918,2]
[356449927,1742463042986,-500.0,0.00021918,2]
[356449928,1742463042995,-500.0,0.00021918,2]
[356449929,1742463043005,-500.0,0.00021918,2]
[356449931,1742463043015,-500.0,0.00021918,2]
[356449933,1742463043024,-500.0,0.00021918,2]
[356449935,1742463043034,-500.0,0.00021918,2]
[356449937,1742463043044,-500.0,0.00021918,2]
[356449939,1742463043055,-500.0,0.00021918,2]
[356449941,1742463043069,-500.0,0.00021918,2]
[356449943,1742463043079,-617.7265734,0.00021918,2]
[356449944,1742463043088,-500.0,0.00021918,2]
[356449945,1742463043098,-500.0,0.00021918,2]
[356449946,1742463043109,-500.0,0.00021918,2]
[356449947,1742463043118,-500.0,0.00021918,2]
[356449948,1742463043128,-500.0,0.00021918,2]
[356449949,1742463043139,-500.0,0.00021918,2]
[356449951,1742463043149,-500.0,0.00021918,2]
[356449953,1742463043159,-500.0,0.00021918,2]
[356449954,1742463043168,-500.0,0.00021918,2]
[356449955,1742463043178,-500.0,0.00021918,2]
[356449956,1742463043187,-500.0,0.00021918,2]
[356449957,1742463043197,-500.0,0.00021918,2]
[356449958,1742463043207,-258.46059464,0.000228,3]
[356449959,1742463043217,-1613.0,0.00023552,2]
[356449960,1742463043227,-392.14849487,0.000252,120]
[356449961,1742463043238,-177.106362,0.00029724,2]
[356449962,1742463043248,-600.0,0.0003098,2]
[356449963,1742463043257,-8470.36,0.00030989,3]
[356449964,1742463043267,-4235.18,0.00030989,3]
[356449965,1742463043276,-2117.59,0.00030989,3]
[356449966,1742463043286,-1058.8,0.00030989,3]
[356449967,1742463043295,-529.4,0.00030989,3]
[356449968,1742463043305,-833.99388742,0.00030989,3]
[356449969,1742463043315,-264.7,0.00030989,3]
[356449970,1742463043324,-794.11,0.00030989,3]
[356449971,1742463043335,-500.0,0.00030998,2]
[356449972,1742463043345,-152.87700413,0.00030998,2]
[356449973,1742463043354,-211.51077804,0.00030999,2]
[356449974,1742463043364,-32342.85174941,0.00031,2]
[356449975,1742463043375,-1031.29573442,0.00031035,2]
[356449976,1742463043385,-200.0,0.00031774,5]
[356449977,1742463043395,-1911.92794897,0.00031793,2]
[356449978,1742463043405,-25395.48832054,0.00031897,2]
[356449979,1742463043415,-183.457,0.00031999,31]
[356449980,1742463043425,-105011.0,0.00032,3]
[356449981,1742463043435,-1911.92794895,0.00032247,2]
[356449982,1742463043445,-16940.72,0.00032359,3]
[356449983,1742463043455,-8470.36,0.00032359,3]
[356449984,1742463043464,-4235.18,0.00032359,3]
[356449985,1742463043475,-2117.6,0.00032359,3]
[356449986,1742463043485,-1058.8,0.00032359,3]
[356449987,1742463043495,-529.4,0.00032359,3]
[356449988,1742463043504,-1911.92794895,0.000327,2]
[356449989,1742463043514,-260.47220418,0.00032756,2]
[356449990,1742463043523,-260.47220416,0.00032761,2]
[356449991,1742463043534,-260.47220416,0.00032766,2]
[356449992,1742463043543,-260.47220416,0.00032771,2]
[356449993,1742463043553,-260.47220416,0.00032776,2]
[356449994,1742463043562,-160.0,0.00032848,2]
[356449995,1742463043571,-417.94044697,0.00032866,3]
[356449996,1742463043582,-500.0,0.00032873,5]
[356449997,1742463043592,-500.0,0.00032873,5]
[356449998,1742463043602,-500.0,0.00032873,5]
[356449999,1742463043611,-500.0,0.00032873,5]
[356450000,1742463043621,-500.0,0.00032873,5]
[356450001,1742463043631,-500.0,0.00032873,5]
[356450002,1742463043642,-500.0,0.00032873,5]
[356450003,1742463043652,-500.0,0.00032873,5]
[356450004,1742463043661,-500.0,0.00032873,5]
[356450005,1742463043671,-500.0,0.00032873,5]
[356450006,1742463043680,-605.92204802,0.00032873,5]
[356450007,1742463043690,-500.0,0.00032873,5]
[356450008,1742463043699,-500.0,0.00032873,5]
[356450009,1742463043709,-500.0,0.00032873,5]
[356450010,1742463043719,-501.81999709,0.00032873,5]
[356450011,1742463043728,-500.0,0.00032873,5]
[356450012,1742463043737,-500.0,0.00032873,5]
[356450013,1742463043747,-500.0,0.00032873,5]
[356450014,1742463043757,-500.0,0.00032873,5]
[356450015,1742463043766,-500.0,0.00032873,5]
[356450016,1742463043775,-491.43295118,0.00032873,5]
[356450017,1742463043785,-504.50437708,0.00032873,5]
[356450018,1742463043795,-500.0,0.00032876,21]
[356450019,1742463043804,-590.41241904,0.00032876,21]
[356450020,1742463043814,-500.0,0.00032876,21]
[356450021,1742463043824,-419.37916491,0.00032876,21]
[356450022,1742463043834,-500.0,0.00032876,21]
[356450023,1742463043843,-542.31016687,0.00032876,21]
[356450024,1742463043853,-500.0,0.00032876,21]
[356450025,1742463043862,-500.0,0.00032876,21]
[356450026,1742463043872,-500.0,0.00032876,21]
[356450027,1742463043881,-500.0,0.00032876,21]
[356450028,1742463043890,-500.0,0.00032876,21]
[356450029,1742463043900,-500.0,0.00032876,21]
[356450030,1742463043910,-500.0,0.00032876,21]
[356450031,1742463043919,-417.94044697,0.00032876,7]
[356450032,1742463043929,-500.0,0.00032876,21]
[356450033,1742463043938,-500.0,0.00032876,21]
[356450034,1742463043948,-500.0,0.00032876,21]
[356450035,1742463043957,-500.0,0.00032876,21]
[356450036,1742463043968,-1279.61,0.00032876,21]
[356450037,1742463043977,-500.0,0.00032876,21]
[356450038,1742463043987,-555.85453002,0.00032876,21]
[356450039,1742463043996,-500.0,0.00032876,21]
[356450040,1742463044006,-500.0,0.00032876,21]
[356450041,1742463044015,-571.4,0.00032876,21]
[356450042,1742463044025,-781.65,0.00032876,21]
[356450043,1742463044035,-500.0,0.00032876,21]
[356450044,1742463044045,-500.0,0.00032876,21]
[356450045,1742463044055,-500.0,0.00032876,21]
[356450046,1742463044067,-500.0,0.00032876,21]
[356450047,1742463044077,-1000.0,0.00032876,2]
[356450048,1742463044087,-500.0,0.00032876,21]
[356450049,1742463044097,-500.0,0.00032876,21]
[356450050,1742463044106,-500.0,0.00032876,21]
[356450051,1742463044116,-500.0,0.00032876,21]
[356450052,1742463044125,-500.0,0.00032876,21]
[356450053,1742463044136,-203.56466949,0.00032876,21]
[356450054,1742463044146,-620.86,0.00032876,21]
[356450055,1742463044156,-500.0,0.00032876,21]
[356450056,1742463044165,-204.63,0.00032876,7]
[356450057,1742463044175,-500.0,0.00032876,21]
[356450058,1742463044184,-500.0,0.00032876,21]
[356450059,1742463044194,-500.0,0.00032876,21]
[356450060,1742463044203,-500.0,0.00032876,21]
[356450061,1742463044212,-500.0,0.00032876,21]
[356450062,1742463044222,-592.9,0.00032876,21]
[356450063,1742463044231,-651.82,0.00032876,21]
[356450064,1742463044241,-500.0,0.00032876,21]
[356450065,1742463044250,-500.0,0.00032876,21]
[356450066,1742463044260,-951.82,0.00032876,21]
[356450067,1742463044270,-602.25,0.00032876,21]
[356450068,1742463044280,-504.58932777,0.00032876,21]
[356450069,1742463044289,-500.0,0.00032876,21]
[356450070,1742463044298,-599.23,0.00032876,21]
[356450071,1742463044308,-500.0,0.00032876,21]
[356450072,1742463044321,-500.0,0.00032876,21]
[356450073,1742463044333,-500.0,0.00032876,21]
[356450074,1742463044344,-500.0,0.00032876,21]
[356450075,1742463044354,-500.0,0.00032876,21]
[356450076,1742463044365,-500.0,0.00032876,21]
[356450077,1742463044375,-500.0,0.00032876,21]
[356450078,1742463044385,-500.0,0.00032876,21]
[356450079,1742463044396,-500.0,0.00032876,21]
[356450080,1742463044406,-500.0,0.00032876,21]
[356450081,1742463044417,-500.0,0.00032876,21]
[356450082,1742463044427,-500.0,0.00032876,21]
[356450083,1742463044438,-500.0,0.00032876,21]
[356450084,1742463044449,-506.61842872,0.00032876,21]
[356450085,1742463044459,-500.0,0.00032876,21]
[356450086,1742463044469,-500.0,0.00032876,21]
[356450087,1742463044480,-500.0,0.00032876,21]
[356450088,1742463044490,-500.0,0.00032876,21]
[356450089,1742463044501,-500.0,0.00032876,21]
[356450090,1742463044511,-620.36,0.00032876,21]
[356450091,1742463044521,-500.0,0.00032876,21]
[356450092,1742463044532,-388.08399499,0.00032876,21]
[356450093,1742463044542,-500.0,0.00032876,21]
[356450094,1742463044552,-504.12118431,0.00032876,21]
[356450095,1742463044562,-658.97,0.00032876,21]
[356450096,1742463044572,-505.41527874,0.00032876,21]
[356450097,1742463044582,-500.0,0.00032876,21]
[356450098,1742463044592,-500.0,0.00032876,21]
[356450099,1742463044603,-500.0,0.00032876,21]
[356450100,1742463044613,-579.4,0.00032876,21]
[356450101,1742463044623,-505.7213477,0.00032876,21]
[356450102,1742463044633,-1012.48,0.00032876,21]
[356450103,1742463044644,-500.0,0.00032876,21]
[356450104,1742463044654,-500.0,0.00032876,21]
[356450105,1742463044664,-848.26,0.00032876,21]
[356450106,1742463044679,-701.31,0.00032876,21]
[356450107,1742463044689,-500.0,0.00032876,21]
[356450108,1742463044699,-596.46,0.00032876,21]